fUSD/lending_fUSD_20250602
["ID","MTS","AMOUNT","RATE_DAILY","PERIOD"]
[363812417,1748883045250,-420.0,0.00019315,2]
[363812419,1748883045260,-420.0,0.00019315,2]
[363812421,1748883045270,-420.0,0.00019315,2]
[363812423,1748883045280,-420.0,0.00019315,2]
[363812424,1748883045290,-420.0,0.00019315,2]
[363812426,1748883045300,-420.0,0.00019315,2]
[363812428,1748883045310,-631.99,0.00019315,2]
[363812430,1748883045320,-420.0,0.00019315,2]
[363812432,1748883045330,-420.0,0.00019315,2]
[363812434,1748883045340,-525.78,0.00019315,2]
[363812436,1748883045350,-420.0,0.00019315,2]
[363812439,1748883045360,-420.0,0.00019315,2]
[363812441,1748883045370,-556.73,0.00019315,2]
[363812443,1748883045380,-759.68,0.00019315,2]
[363812445,1748883045391,-474.92,0.00019315,2]
[363812447,1748883045401,-164.18,0.00019315,2]
[363812449,1748883045412,-420.0,0.00019315,2]
[363812451,1748883045423,-484.14,0.00019315,2]
[363812453,1748883045433,-420.0,0.00019315,2]
[363812455,1748883045444,-420.0,0.00019315,2]
[363812457,1748883045454,-420.0,0.00019315,2]
[363812459,1748883045465,-420.0,0.00019315,2]
[363812461,1748883045475,-2112.34,0.00019315,2]
[363812463,1748883045484,-420.0,0.00019315,2]
[363812465,1748883045494,-420.0,0.00019315,2]
[363812467,1748883045505,-2091.42,0.00019315,2]
[363812469,1748883045515,-420.0,0.00019315,2]
[363812471,1748883045525,-420.0,0.00019315,2]
[363812474,1748883045535,-420.0,0.00019315,2]
[363812476,1748883045544,-420.0,0.00019315,2]
[363812478,1748883045555,-241.43,0.00019315,2]
[363812480,1748883045564,-420.0,0.00019315,2]
[363812482,1748883045573,-420.0,0.00019315,2]
[363812484,1748883045583,-420.0,0.00019315,2]
[363812486,1748883045593,-420.0,0.00019315,2]
[363812488,1748883045602,-420.0,0.00019315,2]
[363812490,1748883045611,-420.0,0.00019315,2]
[363812492,1748883045619,-420.0,0.00019315,2]
[363812494,1748883045629,-421.85,0.00019315,2]
[363812497,1748883045638,-420.0,0.00019315,2]
[363812499,1748883045647,-420.0,0.00019315,2]
[363812501,1748883045656,-420.0,0.00019315,2]
[363812503,1748883045666,-480.61,0.00019315,2]
[363812505,1748883045676,-539.24,0.00019315,2]
[363812508,1748883045686,-420.0,0.00019315,2]
[363812509,1748883045696,-420.0,0.00019315,2]
[363812511,1748883045707,-420.0,0.00019315,2]
[363812513,1748883045717,-420.0,0.00019315,2]
[363812515,1748883045727,-420.0,0.00019315,2]
[363812517,1748883045737,-420.0,0.00019315,2]
[363812519,1748883045747,-420.0,0.00019315,2]
[363812521,1748883045756,-420.0,0.00019315,2]
[363812523,1748883045766,-532.08,0.00019315,2]
[363812525,1748883045776,-420.0,0.00019315,2]
[363812527,1748883045786,-420.0,0.00019315,2]
[363812530,1748883045796,-420.0,0.00019315,2]
[363812531,1748883045806,-511.23,0.00019315,2]
[363812533,1748883045815,-420.0,0.00019315,2]
[363812535,1748883045825,-207.17,0.00019315,2]
[363812537,1748883045835,-6309.35,0.00019315,2]
[363812539,1748883045845,-420.0,0.00019315,2]
[363812542,1748883045855,-420.0,0.00019315,2]
[363812544,1748883045865,-1015.36,0.00019315,2]
[363812546,1748883045874,-420.0,0.00019315,2]
[363812548,1748883045884,-420.0,0.00019315,2]
[363812550,1748883045894,-305.97,0.00019315,2]
[363812552,1748883045904,-420.0,0.00019315,2]
[363812554,1748883045913,-420.0,0.00019315,2]
[363812556,1748883045925,-420.0,0.00019315,2]
[363812558,1748883045934,-488.74,0.00019315,2]
[363812560,1748883045944,-385.42,0.00019315,2]
[363812562,1748883045954,-420.0,0.00019315,2]
[363812564,1748883045964,-1049.74,0.00019315,2]
[363812566,1748883045974,-248.4,0.00019315,2]
[363812568,1748883045984,-170.34,0.00019315,2]
[363812570,1748883045994,-167.87,0.00019315,2]
[363812572,1748883046004,-329.96,0.00019315,2]
[363812574,1748883046014,-420.0,0.00019315,2]
[363812576,1748883046024,-379.67,0.00019315,2]
[363812578,1748883046033,-420.0,0.00019315,2]
[363812580,1748883046043,-420.0,0.00019315,2]
[363812583,1748883046054,-420.0,0.00019315,2]
[363812586,1748883046063,-420.0,0.00019315,2]
[363812588,1748883046073,-841.83,0.00019315,2]
[363812590,1748883046083,-512.41,0.00019315,2]
[363812592,1748883046093,-585.2,0.00019315,2]
[363812594,1748883046103,-413.57,0.00019315,2]
[363812596,1748883046113,-307.85,0.00019315,2]
[363812598,1748883046124,-411.92,0.00019315,2]
[363812600,1748883046134,-420.0,0.00019315,2]
[363812602,1748883046144,-488.56,0.00019315,2]
[363812604,1748883046153,-420.0,0.00019315,2]
[363812606,1748883046163,-1005.02,0.00019315,2]
[363812608,1748883046174,-420.0,0.00019315,2]
[363812610,1748883046184,-420.0,0.00019315,2]
[363812612,1748883046194,-344.36697454,0.00019315,2]
[363812630,1748883046463,-420.0,0.00019315,2]
[363812631,1748883046473,-468.35,0.00019315,2]
[363812632,1748883046483,-1422.9,0.00019315,2]
[363812634,1748883046493,-795.62,0.00019315,2]
[363812636,1748883046502,-223.53,0.00019315,2]
[363812638,1748883046511,-202.01,0.00019315,2]
[363812640,1748883046522,-2183.31810187,0.00019331,2]
[363812642,1748883046532,-4022.03159152,0.00019352,2]
[363812644,1748883046542,-2264.10087164,0.00019386,2]
[363812646,1748883046551,-633.72270562,0.00019441,2]
[363812648,1748883046562,-420.0,0.00019452,2]
[363812650,1748883046571,-420.0,0.00019452,2]
[363812652,1748883046580,-420.0,0.00019452,2]
[363812654,1748883046593,-498.12,0.00019452,2]
[363812656,1748883046602,-420.0,0.00019452,2]
[363812658,1748883046612,-420.0,0.00019452,2]
[363812660,1748883046622,-420.0,0.00019452,2]
[363812662,1748883046632,-335.24,0.00019452,2]
[363812664,1748883046641,-420.0,0.00019452,2]
[363812665,1748883046651,-218.79,0.00019452,2]
[363812667,1748883046660,-278.94,0.00019452,2]
[363812670,1748883046670,-273.43,0.00019452,2]
[363812671,1748883046681,-420.0,0.00019452,2]
[363812673,1748883046692,-420.0,0.00019452,2]
[363812676,1748883046703,-420.0,0.00019452,2]
[363812678,1748883046713,-326.88,0.00019452,2]
[363812680,1748883046723,-420.0,0.00019452,2]
[363812681,1748883046732,-420.0,0.00019452,2]
[363812683,1748883046742,-420.0,0.00019452,2]
[363812685,1748883046751,-420.0,0.00019452,2]
[363812687,1748883046761,-420.0,0.00019452,2]
[363812689,1748883046770,-420.0,0.00019452,2]
[363812691,1748883046779,-389.63099663,0.00019452,2]
[363812693,1748883046789,-420.0,0.00019452,2]
[363812695,1748883046798,-420.0,0.00019452,2]
[363812697,1748883046808,-420.0,0.00019452,2]
[363812699,1748883046817,-420.0,0.00019452,2]
[363812701,1748883046827,-420.0,0.00019452,2]
[363812703,1748883046836,-420.0,0.00019452,2]
[363812705,1748883046845,-420.0,0.00019452,2]
[363812707,1748883046855,-546.7,0.00019452,2]
[363812709,1748883046865,-675.94,0.00019452,2]
[363812711,1748883046874,-420.0,0.00019452,2]
[363812713,1748883046884,-420.0,0.00019452,2]
[363812715,1748883046893,-4337.22,0.00019452,2]
[363812717,1748883046902,-420.0,0.00019452,2]
[363812719,1748883046911,-420.0,0.00019452,2]
[363812721,1748883046920,-420.0,0.00019452,2]
[363812723,1748883046931,-473.31,0.00019452,2]
[363812725,1748883046940,-420.0,0.00019452,2]
[363812727,1748883046949,-420.0,0.00019452,2]
[363812729,1748883046959,-449.46,0.00019452,2]
[363812731,1748883046968,-420.0,0.00019452,2]
[363812733,1748883046977,-437.55,0.00019452,2]
[363812735,1748883046986,-631.99,0.00019452,2]
[363812737,1748883046996,-420.0,0.00019452,2]
[363812739,1748883047006,-223.23,0.00019452,2]
[363812741,1748883047016,-556.73,0.00019452,2]
[363812743,1748883047025,-759.68,0.00019452,2]
[363812745,1748883047035,-474.92,0.00019452,2]
[363812747,1748883047044,-211.58010709,0.00019452,2]
[363812749,1748883047054,-420.0,0.00019452,2]
[363812751,1748883047064,-420.0,0.00019452,2]
[363812753,1748883047074,-420.0,0.00019452,2]
[363812755,1748883047083,-420.0,0.00019452,2]
[363812757,1748883047094,-2112.34,0.00019452,2]
[363812759,1748883047103,-420.0,0.00019452,2]
[363812761,1748883047113,-2091.42,0.00019452,2]
[363812763,1748883047122,-420.0,0.00019452,2]
[363812765,1748883047131,-411.87,0.00019452,2]
[363812766,1748883047141,-447.87,0.00019452,2]
[363812768,1748883047151,-420.0,0.00019452,2]
[363812770,1748883047160,-420.0,0.00019452,2]
[363812772,1748883047169,-412.9147681,0.00019452,2]
[363812774,1748883047179,-420.0,0.00019452,2]
[363812776,1748883047189,-420.0,0.00019452,2]
[363812778,1748883047198,-548.28847097,0.00019452,2]
[363812780,1748883047208,-420.0,0.00019452,2]
[363812782,1748883047220,-389.63,0.00019452,2]
[363812784,1748883047230,-443.6,0.00019452,2]
[363812786,1748883047240,-420.0,0.00019452,2]
[363812788,1748883047249,-420.0,0.00019452,2]
[363812790,1748883047259,-420.0,0.00019452,2]
[363812792,1748883047269,-420.0,0.00019452,2]
[363812794,1748883047283,-420.0,0.00019452,2]
[363812796,1748883047294,-420.0,0.00019452,2]
[363812798,1748883047305,-532.08,0.00019452,2]
[363812800,1748883047315,-370.77,0.00019452,2]
[363812802,1748883047324,-420.0,0.00019452,2]
[363812804,1748883047334,-6309.35,0.00019452,2]
[363812806,1748883047343,-443.72,0.00019452,2]
[363812808,1748883047353,-1015.36,0.00019452,2]
[363812810,1748883047363,-420.0,0.00019452,2]
[363812812,1748883047373,-534.11083608,0.00019452,2]
[363812814,1748883047383,-281.81,0.00019452,2]
[363812816,1748883047393,-277.6,0.00019452,2]
[363812818,1748883047403,-488.74,0.00019452,2]
[363812820,1748883047413,-420.0,0.00019452,2]
[363812822,1748883047424,-1049.74,0.00019452,2]
[363812824,1748883047434,-420.0,0.00019452,2]
[363812826,1748883047444,-420.0,0.00019452,2]
[363812828,1748883047454,-420.0,0.00019452,2]
[363812830,1748883047464,-420.0,0.00019452,2]
[363812832,1748883047473,-420.0,0.00019452,2]
[363812834,1748883047483,-841.83,0.00019452,2]
[363812836,1748883047493,-512.41,0.00019452,2]
[363812838,1748883047503,-585.2,0.00019452,2]
[363812840,1748883047513,-420.0,0.00019452,2]
[363812842,1748883047523,-1005.02,0.00019452,2]
[363812844,1748883047533,-531.97,0.00019452,2]
[363812846,1748883047545,-420.0,0.00019452,2]
[363812848,1748883047555,-468.35,0.00019452,2]
[363812850,1748883047565,-1422.9,0.00019452,2]
[363812852,1748883047575,-795.62,0.00019452,2]
[363812854,1748883047585,-4101.05165672,0.00019503,2]
[363812856,1748883047595,-175.16,0.00019589,2]
[363812858,1748883047605,-527.22,0.00019589,2]
[363812860,1748883047615,-528.77,0.00019589,2]
[363812862,1748883047624,-512.33,0.00019589,2]
[363812863,1748883047633,-420.0,0.00019589,2]
[363812865,1748883047644,-197.92,0.00019589,2]
[363812867,1748883047654,-420.0,0.00019589,2]
[363812869,1748883047663,-420.0,0.00019589,2]
[363812871,1748883047676,-420.0,0.00019589,2]
[363812873,1748883047685,-308.63,0.00019589,2]
[363812875,1748883047695,-420.0,0.00019589,2]
[363812877,1748883047704,-546.7,0.00019589,2]
[363812879,1748883047713,-675.94,0.00019589,2]
[363812881,1748883047723,-420.0,0.00019589,2]
[363812883,1748883047732,-4337.22,0.00019589,2]
[363812885,1748883047741,-391.79,0.00019589,2]
[363812887,1748883047751,-420.0,0.00019589,2]
[363812889,1748883047762,-420.0,0.00019589,2]
[363812890,1748883047772,-473.31,0.00019589,2]
[363812891,1748883047781,-420.0,0.00019589,2]
[363812892,1748883047790,-420.0,0.00019589,2]
[363812893,1748883047800,-631.99,0.00019589,2]
[363812894,1748883047809,-420.0,0.00019589,2]
[363812895,1748883047819,-556.73,0.00019589,2]
[363812896,1748883047828,-759.68,0.00019589,2]
[363812897,1748883047837,-474.92,0.00019589,2]
[363812898,1748883047847,-420.0,0.00019589,2]
[363812899,1748883047856,-420.0,0.00019589,2]
[363812900,1748883047866,-420.0,0.00019589,2]
[363812902,1748883047875,-420.0,0.00019589,2]
[363812904,1748883047885,-2112.34,0.00019589,2]
[363812906,1748883047894,-420.0,0.00019589,2]
[363812907,1748883047904,-2091.42,0.00019589,2]
[363812908,1748883047914,-420.0,0.00019589,2]
[363812910,1748883047925,-420.0,0.00019589,2]
[363812912,1748883047935,-420.0,0.00019589,2]
[363812914,1748883047945,-420.0,0.00019589,2]
[363812916,1748883047955,-420.0,0.00019589,2]
[363812917,1748883047964,-309.76,0.00019589,2]
[363812919,1748883047974,-447.69,0.00019589,2]
[363812920,1748883047984,-420.0,0.00019589,2]
[363812921,1748883047993,-420.0,0.00019589,2]
[363812922,1748883048002,-420.0,0.00019589,2]
[363812923,1748883048012,-420.0,0.00019589,2]
[363812925,1748883048021,-532.08,0.00019589,2]
[363812927,1748883048031,-420.0,0.00019589,2]
[363812929,1748883048040,-6309.35,0.00019589,2]
[363812930,1748883048050,-1015.36,0.00019589,2]
[363812932,1748883048059,-420.0,0.00019589,2]
[363812934,1748883048069,-488.74,0.00019589,2]
[363812936,1748883048078,-420.0,0.00019589,2]
[363812938,1748883048088,-1049.74,0.00019589,2]
[363812940,1748883048098,-420.0,0.00019589,2]
[363812942,1748883048108,-420.0,0.00019589,2]
[363812944,1748883048117,-537.18,0.00019589,2]
[363812946,1748883048127,-420.0,0.00019589,2]
[363812948,1748883048137,-420.0,0.00019589,2]
[363812950,1748883048147,-841.83,0.00019589,2]
[363812952,1748883048156,-512.41,0.00019589,2]
[363812954,1748883048167,-585.2,0.00019589,2]
[363812957,1748883048178,-420.0,0.00019589,2]
[363812958,1748883048188,-1005.02,0.00019589,2]
[363812960,1748883048198,-420.0,0.00019589,2]
[363812962,1748883048208,-468.35,0.00019589,2]
[363812964,1748883048221,-1422.9,0.00019589,2]
[363812966,1748883048231,-795.62,0.00019589,2]
[363812968,1748883048241,-503.0,0.00019589,2]
[363812970,1748883048251,-396.64,0.00019726,2]
[363812972,1748883048262,-379.89,0.00019726,2]
[363812974,1748883048271,-420.0,0.00019726,2]
[363812976,1748883048281,-420.0,0.00019726,2]
[363812978,1748883048291,-546.7,0.00019726,2]
[363812980,1748883048300,-675.94,0.00019726,2]
[363812982,1748883048310,-247.97,0.00019726,2]
[363812984,1748883048319,-4337.22,0.00019726,2]
[363812986,1748883048329,-446.44,0.00019726,2]
[363812988,1748883048338,-473.31,0.00019726,2]
[363812990,1748883048347,-420.0,0.00019726,2]
[363812993,1748883048360,-508.44,0.00019726,2]
[363812995,1748883048375,-631.99,0.00019726,2]
[363812997,1748883048387,-420.0,0.00019726,2]
[363813000,1748883048401,-556.73,0.00019726,2]
[363813002,1748883048412,-759.68,0.00019726,2]
[363813004,1748883048424,-474.92,0.00019726,2]
[363813007,1748883048436,-420.0,0.00019726,2]
[363813009,1748883048448,-420.0,0.00019726,2]
[363813011,1748883048461,-420.0,0.00019726,2]
[363813014,1748883048474,-2112.34,0.00019726,2]
[363813016,1748883048490,-420.0,0.00019726,2]
[363813018,1748883048503,-2091.42,0.00019726,2]
[363813019,1748883048517,-420.0,0.00019726,2]
[363813020,1748883048530,-420.0,0.00019726,2]
[363813021,1748883048544,-420.0,0.00019726,2]
[363813024,1748883048558,-420.0,0.00019726,2]
[363813026,1748883048571,-420.0,0.00019726,2]
[363813028,1748883048581,-420.0,0.00019726,2]
[363813030,1748883048593,-420.0,0.00019726,2]
[363813032,1748883048607,-420.0,0.00019726,2]
[363813034,1748883048620,-532.08,0.00019726,2]
[363813036,1748883048631,-188.57,0.00019726,2]
[363813038,1748883048644,-6309.35,0.00019726,2]
[363813040,1748883048656,-1015.36,0.00019726,2]
[363813042,1748883048669,-420.0,0.00019726,2]
[363813044,1748883048685,-488.74,0.00019726,2]
[363813045,1748883048698,-240.88,0.00019726,2]
[363813046,1748883048711,-1049.74,0.00019726,2]
[363813047,1748883048723,-420.0,0.00019726,2]
[363813048,1748883048735,-420.0,0.00019726,2]
[363813049,1748883048749,-420.0,0.00019726,2]
[363813050,1748883048761,-420.0,0.00019726,2]
[363813051,1748883048775,-841.83,0.00019726,2]
[363813052,1748883048788,-512.41,0.00019726,2]
[363813053,1748883048801,-585.2,0.00019726,2]
[363813054,1748883048812,-420.0,0.00019726,2]
[363813055,1748883048824,-1005.02,0.00019726,2]
[363813056,1748883048836,-292.20558674,0.00019726,2]
[363813057,1748883048849,-468.35,0.00019726,2]
[363813058,1748883048867,-1422.9,0.00019726,2]
[363813059,1748883048881,-795.62,0.00019726,2]
[363813060,1748883048895,-4022.03159149,0.00019733,2]
[363813061,1748883048908,-1018.455299,0.00019733,2]
[363813062,1748883048920,-500.0,0.00019799,2]
[363813063,1748883048934,-500.0,0.00019799,2]
[363813064,1748883048945,-200.0,0.000198,7]
[363813065,1748883048957,-1023.0,0.000198,2]
[363813066,1748883048968,-200.0,0.0001984,2]
[363813067,1748883048981,-500.0,0.00019855,2]
[363813068,1748883048995,-500.0,0.00019855,2]
[363813069,1748883049007,-420.0,0.00019863,2]
[363813070,1748883049018,-420.0,0.00019863,2]
[363813071,1748883049028,-546.7,0.00019863,2]
[363813072,1748883049038,-675.94,0.00019863,2]
[363813073,1748883049049,-4337.22,0.00019863,2]
[363813074,1748883049060,-473.31,0.00019863,2]
[363813075,1748883049072,-420.0,0.00019863,2]
[363813076,1748883049086,-631.99,0.00019863,2]
[363813077,1748883049098,-420.0,0.00019863,2]
[363813078,1748883049109,-556.73,0.00019863,2]
[363813079,1748883049120,-759.68,0.00019863,2]
[363813080,1748883049130,-474.92,0.00019863,2]
[363813081,1748883049142,-420.0,0.00019863,2]
[363813082,1748883049153,-217.9,0.00019863,2]
[363813083,1748883049164,-420.0,0.00019863,2]
[363813084,1748883049178,-2112.34,0.00019863,2]
[363813085,1748883049189,-420.0,0.00019863,2]
[363813086,1748883049201,-2091.42,0.00019863,2]
[363813087,1748883049215,-420.0,0.00019863,2]
[363813088,1748883049229,-420.0,0.00019863,2]
[363813089,1748883049241,-420.0,0.00019863,2]
[363813090,1748883049252,-420.0,0.00019863,2]
[363813091,1748883049264,-420.0,0.00019863,2]
[363813092,1748883049275,-420.0,0.00019863,2]
[363813093,1748883049286,-420.0,0.00019863,2]
[363813094,1748883049299,-420.0,0.00019863,2]
[363813095,1748883049311,-532.08,0.00019863,2]
[363813096,1748883049323,-6309.35,0.00019863,2]
[363813097,1748883049334,-1015.36,0.00019863,2]
[363813098,1748883049345,-420.0,0.00019863,2]
[363813099,1748883049357,-488.74,0.00019863,2]
[363813100,1748883049368,-1049.74,0.00019863,2]
[363813101,1748883049380,-420.0,0.00019863,2]
[363813102,1748883049392,-420.0,0.00019863,2]
[363813103,1748883049403,-417.60762092,0.00019863,2]
[363813104,1748883049418,-420.0,0.00019863,2]
[363813105,1748883049430,-841.83,0.00019863,2]
[363813106,1748883049442,-512.41,0.00019863,2]
[363813107,1748883049453,-585.2,0.00019863,2]
[363813108,1748883049464,-420.0,0.00019863,2]
[363813109,1748883049475,-1005.02,0.00019863,2]
[363813110,1748883049487,-468.35,0.00019863,2]
[363813111,1748883049499,-1422.9,0.00019863,2]
[363813112,1748883049509,-795.62,0.00019863,2]
[363813113,1748883049521,-2000.0,0.00019898,2]
[363813114,1748883049532,-500.0,0.00019898,2]
[363813115,1748883049542,-500.0,0.00019898,2]
[363813116,1748883049554,-500.0,0.00019899,2]
[363813117,1748883049565,-892.31,0.00019899,2]
[363813118,1748883049576,-5149.37662797,0.000199,2]
[363813119,1748883049587,-297.52660028,0.000199,2]
[363813120,1748883049597,-161.98776179,0.000199,2]
[363813121,1748883049608,-1334.44505796,0.000199,2]
[363813122,1748883049620,-500.0,0.000199,7]
[363813123,1748883049631,-6026.2326389,0.000199,2]
[363813124,1748883049641,-200.0,0.00019908,2]
[363813125,1748883049653,-4101.05165672,0.00019927,2]
[363813126,1748883049663,-5800.0,0.00019948,2]
[363813127,1748883049675,-5800.0,0.00019957,2]
[363813128,1748883049686,-5800.0,0.00019965,2]
[363813129,1748883049697,-500.0,0.00019973,2]
[363813130,1748883049708,-500.0,0.00019973,2]
[363813131,1748883049719,-361.578075,0.00019973,2]
[363813132,1748883049729,-500.0,0.00019973,2]
[363813133,1748883049740,-500.0,0.00019973,2]
[363813134,1748883049751,-500.0,0.00019973,2]
[363813135,1748883049762,-500.0,0.00019973,2]
[363813136,1748883049773,-500.0,0.00019973,2]
[363813137,1748883049784,-500.0,0.00019973,2]
[363813138,1748883049795,-1450.55733831,0.00019973,2]
[363813139,1748883050052,-287.0634269,0.00019973,2]
[363813140,1748883050066,-10762.37923479,0.00019973,2]
[363813141,1748883050077,-5800.0,0.00019973,2]
[363813142,1748883050088,-200.0,0.00019974,2]
[363813143,1748883050099,-1260.81147062,0.0001998,7]
[363813144,1748883050109,-5800.0,0.00019982,2]
[363813145,1748883050122,-449.24976534,0.0001999,2]
[363813146,1748883050133,-5800.0,0.0001999,2]
[363813147,1748883050145,-630.14,0.00019998,2]
[363813148,1748883050155,-174.05282742,0.00019998,2]
[363813149,1748883050166,-500.0,0.00019998,2]
[363813150,1748883050179,-5800.0,0.00019999,2]
[363813151,1748883050189,-500.0,0.00019999,2]
[363813152,1748883050200,-500.0,0.00019999,2]
[363813153,1748883050210,-500.0,0.00019999,2]
[363813154,1748883050225,-500.0,0.00019999,2]
[363813155,1748883050235,-500.0,0.00019999,2]
[363813156,1748883050247,-500.0,0.00019999,2]
[363813157,1748883050257,-500.0,0.00019999,2]
[363813158,1748883050268,-67.07143183,0.00019999,2]
[363813159,1748883050286,-314.95780018,0.00019999,2]
[363813160,1748883050298,-191.66850061,0.00019999,2]
[363813161,1748883050310,-352.72799642,0.00019999,2]
[363813162,1748883050323,-347.91350297,0.00019999,2]
[363813163,1748883050334,-892.31,0.00019999,2]
[363813164,1748883050345,-892.31,0.00019999,2]
[363813165,1748883050355,-380.56540124,0.0002,2]
[363813166,1748883050369,-450.0,0.0002,2]
[363813167,1748883050382,-123.43459876,0.0002,2]
[363813168,1748883050393,-8732.15455121,0.0002,2]
[363813169,1748883050407,-14851.10087165,0.0002,2]
[363813170,1748883050419,-870.44412021,0.0002,2]
[363813171,1748883050435,-534.3999998,0.0002,2]
[363813172,1748883050448,-601.69438981,0.0002,2]
[363813173,1748883050461,-294.25029626,0.0002,2]
[363813174,1748883050475,-579.68641156,0.0002,2]
[363813175,1748883050494,-485.305,0.0002,2]
[363813176,1748883050507,-1669.93705332,0.0002,2]
[363813177,1748883050578,3000.0,0.00041,120]
[363813178,1748883050934,-25707.2552888,0.0002,2]
[363813179,1748883050953,-22711.93105574,0.0002,2]
[363813180,1748883050970,-506.94,0.00019178,2]
[363813181,1748883050979,-1366.927368,0.0002,2]
[363813182,1748883050992,-1879.68985856,0.0002,2]
[363813183,1748883051003,-1612.99999998,0.0002,2]
[363813184,1748883051017,-541.2354342,0.0002,2]
[363813185,1748883051032,-467.96961399,0.0002,2]
[363813186,1748883051043,-2601.43652111,0.0002,2]
[363813187,1748883051055,-120758.69395168,0.0002,2]
[363813188,1748883051066,-325.25041004,0.0002,2]
[363813189,1748883051077,-1716.24101364,0.0002,2]
[363813190,1748883051093,-475.46269886,0.00019315,2]
[363813191,1748883066457,500.0,0.00023,30]
[363813192,1748883068201,252.62425417,0.00023,30]
[363813193,1748883070636,500.0,0.00023,30]
[363813194,1748883091323,150.0,0.00039403,120]
[363813195,1748883091696,2000.0,0.00041,120]
[363813196,1748883115726,3000.0,0.0004105,120]
[363813197,1748883126711,500.0,0.00023,30]
[363813198,1748883139602,250.0,0.00023,30]
[363813200,1748883150489,150.0,0.00038446,120]
[363813201,1748883156050,1498.34,0.00041095,120]
[363813202,1748883169645,182.84,0.00034247,120]
[363813203,1748883170157,182.84,0.00041096,120]
[363813204,1748883188983,2280.09,0.00041095,120]
[363813205,1748883208125,-171.51263129,0.00019051,2]
[363813206,1748883210969,150.0,0.00040451,120]
[363813207,1748883215903,9999.0,0.0004,120]
[363813208,1748883226666,200.0,0.00018961,2]
[363813209,1748883246155,669.336,0.00041,120]
[363813210,1748883270506,150.0,0.00038239,120]
[363813211,1748883281604,217.42,0.00018955,2]
[363813212,1748883302990,58905.76814877,0.0004098,120]
[363813213,1748883309800,150.0,0.00023,30]
[363813214,1748883329170,150.0,0.00023,30]
[363813215,1748883330259,252.55148129,0.00023,30]
[363813216,1748883331063,150.0,0.0003975,120]
[363813217,1748883336586,500.0,0.00023,30]
[363813218,1748883340458,150.0,0.00023,30]
[363813219,1748883345880,150.0,0.00023,30]
[363813220,1748883348403,150.0,0.00023,30]
[363813221,1748883349754,150.0,0.00023,30]
[363813222,1748883364060,500.0,0.00023,30]
[363813223,1748883366926,646.0,0.00023,30]
[363813224,1748883367568,500.0,0.00023,30]
[363813225,1748883369228,500.0,0.00023,30]
[363813226,1748883375509,500.0,0.00023,30]
[363813227,1748883386115,20000.0,0.0004,120]
[363813228,1748883391265,150.0,0.00038691,120]
[363813229,1748883393940,1435.91,0.00041095,120]
[363813230,1748883398000,2185.09,0.00041095,120]